fUST/lending_fUST_20241112
["ID","MTS","AMOUNT","RATE_DAILY","PERIOD"]
[342075983,1731408637344,-819.65,0.00023023,2]
[342075984,1731408637354,-500.0,0.00023023,2]
[342075985,1731408637364,-500.0,0.00023023,2]
[342075986,1731408637374,-465.12093716,0.00023023,2]
[342075987,1731408637384,-500.0,0.00023024,2]
[342075988,1731408637394,-426.4528284,0.00023024,2]
[342075989,1731408637403,-500.0,0.00023024,2]
[342075990,1731408637413,-644.8878581,0.00023137,2]
[342075991,1731408637423,-4332.399535,0.00023137,2]
[342075992,1731408637433,-819.65,0.00023297,2]
[342075993,1731408637442,-500.0,0.00023297,2]
[342075994,1731408637452,-534.87387436,0.00023297,2]
[342075995,1731408637461,-500.0,0.00023298,2]
[342075996,1731408637470,-2302.1145944,0.00023402,2]
[342075997,1731408637486,-819.65,0.00023571,2]
[342075998,1731408637495,-500.0,0.00023571,2]
[342075999,1731408637505,-500.0,0.00023572,2]
[342076000,1731408637514,-4332.399535,0.00023822,2]
[342076001,1731408637525,-2217.57,0.00023827,2]
[342076002,1731408637537,-1000.90501117,0.00023828,2]
[342076003,1731408637546,-420.0,0.00023829,2]
[342076004,1731408637555,-187.72,0.00023842,2]
[342076005,1731408637565,-819.65,0.00023845,2]
[342076006,1731408637575,-500.0,0.00023845,2]
[342076007,1731408637584,-500.0,0.00023846,2]
[342076008,1731408637594,-500.0,0.00023851,2]
[342076009,1731408637603,-500.0,0.00023851,2]
[342076010,1731408637613,-500.0,0.00023851,2]
[342076011,1731408637622,-500.0,0.00023851,2]
[342076012,1731408637632,-500.0,0.00023851,2]
[342076013,1731408637641,-500.0,0.00023851,2]
[342076014,1731408637651,-500.0,0.00023851,2]
[342076015,1731408637660,-500.0,0.00023851,2]
[342076016,1731408637670,-500.0,0.00023851,2]
[342076018,1731408637679,-215.81812675,0.00023851,2]
[342076019,1731408637687,-552.68,0.00023851,2]
[342076021,1731408637697,-500.0,0.00023851,2]
[342076022,1731408637706,-500.0,0.00023851,2]
[342076023,1731408637715,-500.0,0.00023851,2]
[342076024,1731408637729,-500.0,0.00023851,2]
[342076025,1731408637739,-500.0,0.00023851,2]
[342076026,1731408637748,-500.0,0.00023851,2]
[342076027,1731408637757,-500.0,0.00023851,2]
[342076028,1731408637765,-500.0,0.00023851,2]
[342076029,1731408637774,-500.0,0.00023851,2]
[342076030,1731408637783,-648.37675831,0.00023851,2]
[342076031,1731408637793,-819.65,0.00024119,2]
[342076032,1731408637802,-500.0,0.00024119,2]
[342076033,1731408637810,-500.0,0.0002412,2]
[342076034,1731408637820,-420.0,0.0002412,2]
[342076035,1731408637831,-500.0,0.00024125,2]
[342076036,1731408637840,-500.0,0.00024125,2]
[342076037,1731408637849,-819.65,0.00024393,2]
[342076038,1731408637858,-500.0,0.00024393,2]
[342076039,1731408637868,-500.0,0.00024394,2]
[342076040,1731408637877,-500.0,0.00024399,2]
[342076041,1731408637887,-500.0,0.00024399,2]
[342076042,1731408637896,-165.07452,0.00024482,2]
[342076043,1731408637906,-500.0,0.00024657,15]
[342076044,1731408637915,-500.0,0.00024657,15]
[342076045,1731408637925,-500.0,0.00024657,15]
[342076046,1731408637935,-500.0,0.00024657,15]
[342076048,1731408637945,-500.0,0.00024657,15]
[342076050,1731408637956,-213.78961493,0.00024657,15]
[342076052,1731408637966,-256.60571095,0.00024658,2]
[342076054,1731408637980,-500.921498,0.00024658,4]
[342076056,1731408637994,-500.75981233,0.0002466,2]
[342076068,1731408638103,-500.0,0.0002466,2]
[342076070,1731408638114,-500.0,0.0002466,2]
[342076072,1731408638123,-500.0,0.0002466,2]
[342076074,1731408638133,-379.86850077,0.0002466,2]
[342076076,1731408638143,-500.0,0.0002466,2]
[342076078,1731408638152,-508.59539179,0.0002466,2]
[342076080,1731408638162,-500.0,0.0002466,2]
[342076082,1731408638173,-500.0,0.0002466,2]
[342076084,1731408638183,-500.0,0.0002466,2]
[342076086,1731408638192,-500.0,0.0002466,2]
[342076088,1731408638203,-415.3385192,0.0002466,2]
[342076090,1731408638212,-500.0,0.0002466,2]
[342076092,1731408638221,-500.0,0.0002466,2]
[342076094,1731408638239,-500.0,0.0002466,2]
[342076096,1731408638248,-500.0,0.0002466,2]
[342076098,1731408638258,-500.0,0.0002466,2]
[342076100,1731408638268,-466.66763837,0.0002466,2]
[342076102,1731408638278,-500.0,0.0002466,2]
[342076104,1731408638287,-500.0,0.0002466,2]
[342076106,1731408638297,-500.0,0.0002466,2]
[342076108,1731408638307,-500.0,0.0002466,2]
[342076110,1731408638316,-500.0,0.0002466,2]
[342076112,1731408638325,-500.0,0.0002466,2]
[342076114,1731408638335,-500.0,0.0002466,2]
[342076116,1731408638346,-500.0,0.0002466,2]
[342076118,1731408638356,-608.05194799,0.0002466,2]
[342076120,1731408638366,-193.98539431,0.0002466,2]
[342076122,1731408638375,-500.0,0.0002466,2]
[342076123,1731408638385,-500.0,0.0002466,2]
[342076124,1731408638395,-500.0,0.0002466,2]
[342076126,1731408638404,-500.0,0.0002466,2]
[342076128,1731408638413,-500.0,0.0002466,2]
[342076130,1731408638423,-500.0,0.0002466,2]
[342076131,1731408638432,-500.0,0.0002466,2]
[342076133,1731408638442,-500.0,0.0002466,2]
[342076135,1731408638451,-500.0,0.0002466,2]
[342076137,1731408638460,-500.0,0.0002466,2]
[342076139,1731408638470,-500.0,0.0002466,2]
[342076140,1731408638486,-500.0,0.0002466,2]
[342076142,1731408638496,-500.0,0.0002466,2]
[342076144,1731408638505,-500.0,0.0002466,2]
[342076145,1731408638514,-500.0,0.0002466,2]
[342076147,1731408638527,-500.0,0.0002466,2]
[342076148,1731408638537,-500.0,0.0002466,2]
[342076149,1731408638547,-500.0,0.0002466,2]
[342076150,1731408638557,-500.0,0.0002466,2]
[342076151,1731408638567,-500.0,0.0002466,2]
[342076152,1731408638576,-500.0,0.0002466,2]
[342076154,1731408638586,-500.0,0.0002466,2]
[342076156,1731408638596,-500.0,0.0002466,2]
[342076157,1731408638605,-500.0,0.0002466,2]
[342076159,1731408638615,-500.0,0.0002466,2]
[342076161,1731408638624,-500.0,0.0002466,2]
[342076163,1731408638634,-500.0,0.0002466,2]
[342076165,1731408638644,-500.0,0.0002466,2]
[342076166,1731408638654,-500.0,0.0002466,2]
[342076167,1731408638664,-500.0,0.0002466,2]
[342076168,1731408638673,-500.0,0.0002466,2]
[342076169,1731408638684,-500.0,0.0002466,2]
[342076170,1731408638694,-500.0,0.0002466,2]
[342076171,1731408638704,-500.0,0.0002466,2]
[342076172,1731408638713,-500.0,0.0002466,2]
[342076173,1731408638723,-500.0,0.0002466,2]
[342076174,1731408638739,-500.0,0.0002466,2]
[342076175,1731408638749,-500.0,0.0002466,2]
[342076176,1731408638758,-6774.43,0.00024661,10]
[342076177,1731408638768,-12918.39,0.00024661,10]
[342076178,1731408638778,-819.65,0.00024667,2]
[342076179,1731408638787,-500.0,0.00024667,2]
[342076180,1731408638797,-500.0,0.00024668,2]
[342076181,1731408638806,-2217.57,0.00024671,2]
[342076182,1731408638815,-288.23544022,0.00024671,2]
[342076183,1731408638825,-500.0,0.00024671,2]
[342076184,1731408638835,-299.33371751,0.00024671,2]
[342076185,1731408638845,-261.79303472,0.00024671,2]
[342076186,1731408638855,-500.0,0.00024671,2]
[342076187,1731408638865,-216.69654554,0.00024671,2]
[342076188,1731408638875,-267.9075296,0.00024671,2]
[342076189,1731408638884,-640.03001153,0.00024671,2]
[342076190,1731408638893,-500.0,0.00024672,2]
[342076191,1731408638903,-500.0,0.00024672,2]
[342076192,1731408638912,-161.72425241,0.00024672,2]
[342076193,1731408638922,-500.0,0.00024672,2]
[342076194,1731408638932,-500.0,0.00024672,2]
[342076195,1731408638941,-500.0,0.00024672,2]
[342076196,1731408638950,-500.0,0.00024672,2]
[342076197,1731408638960,-538.25843055,0.00024672,2]
[342076198,1731408638969,-500.0,0.00024672,2]
[342076199,1731408638982,-500.0,0.00024672,2]
[342076200,1731408638992,-500.0,0.00024672,2]
[342076201,1731408639002,-500.0,0.00024672,2]
[342076202,1731408639015,-180.92925842,0.00024672,2]
[342076203,1731408639029,-319.07074158,0.00024672,2]
[342076204,1731408639039,-465.50327333,0.00024672,2]
[342076205,1731408639048,-500.0,0.00024672,2]
[342076206,1731408639060,-524.720566,0.00024672,2]
[342076208,1731408639069,-541.48,0.00024672,2]
[342076209,1731408639080,-500.0,0.00024672,2]
[342076210,1731408639089,-500.0,0.00024672,2]
[342076211,1731408639101,-503.645809,0.00024672,2]
[342076212,1731408639110,-500.0,0.00024672,2]
[342076213,1731408639120,-500.0,0.00024672,2]
[342076214,1731408639129,-397.08553045,0.00024672,2]
[342076215,1731408639141,-102.91446955,0.00024672,2]
[342076217,1731408639151,-544.86687167,0.00024672,2]
[342076218,1731408639161,-500.0,0.00024672,2]
[342076220,1731408639170,-534.05435722,0.00024672,2]
[342076221,1731408639179,-500.0,0.00024672,2]
[342076222,1731408639188,-640.39138322,0.00024672,2]
[342076223,1731408639198,-500.0,0.00024672,2]
[342076224,1731408639208,-500.0,0.00024672,2]
[342076225,1731408639217,-500.0,0.00024672,2]
[342076226,1731408639231,-500.0,0.00024672,2]
[342076227,1731408639241,-500.0,0.00024672,2]
[342076228,1731408639251,-330.17331396,0.00024672,2]
[342076229,1731408639262,-401.52459924,0.00024672,2]
[342076230,1731408639271,-253.5337176,0.00024672,2]
[342076231,1731408639280,-158.56382902,0.00024672,2]
[342076232,1731408639290,-500.0,0.00024672,2]
[342076233,1731408639299,-500.0,0.00024672,2]
[342076234,1731408639309,-500.0,0.00024672,2]
[342076235,1731408639319,-319.4889341,0.00024672,2]
[342076236,1731408639329,-500.0,0.00024672,2]
[342076237,1731408639339,-500.0,0.00024673,2]
[342076238,1731408639349,-500.0,0.00024673,2]
[342076239,1731408639359,-290.80537293,0.00024846,2]
[342076240,1731408639369,-603.61,0.00024916,3]
[342076241,1731408639379,-201.19,0.00024926,3]
[342076242,1731408639388,-819.65,0.00024941,2]
[342076243,1731408639397,-500.0,0.00024941,2]
[342076244,1731408639406,-2217.57,0.00024941,2]
[342076245,1731408639416,-500.0,0.00024942,2]
[342076246,1731408639426,-2217.57,0.00024945,2]
[342076247,1731408639436,-500.0,0.00024946,2]
[342076248,1731408639446,-500.0,0.00024946,2]
[342076249,1731408639456,-500.0,0.00024946,2]
[342076250,1731408639467,-500.0,0.00024947,2]
[342076251,1731408639484,-500.0,0.00024947,2]
[342076252,1731408639494,-152.052,0.00025109,9]
[342076253,1731408639504,-819.65,0.00025215,2]
[342076254,1731408639515,-500.0,0.00025215,2]
[342076255,1731408639525,-500.0,0.00025216,2]
[342076256,1731408639535,-500.0,0.0002522,2]
[342076257,1731408639546,-500.0,0.0002522,2]
[342076259,1731408639557,-366.49,0.0002522,2]
[342076260,1731408639568,-500.0,0.00025221,2]
[342076262,1731408639577,-510.31,0.00025221,2]
[342076263,1731408639588,-290.80537291,0.00025485,2]
[342076264,1731408639598,-819.65,0.00025489,2]
[342076265,1731408639607,-500.0,0.00025489,2]
[342076266,1731408639616,-500.0,0.0002549,2]
[342076267,1731408639626,-500.0,0.00025494,2]
[342076268,1731408639635,-454.8481449,0.00025494,2]
[342076269,1731408639644,-500.0,0.00025495,2]
[342076270,1731408639653,-819.65,0.00025763,2]
[342076271,1731408639663,-634.08,0.00025763,2]
[342076272,1731408639672,-567.09057447,0.00025764,2]
[342076273,1731408639682,-2217.57,0.00025767,2]
[342076274,1731408639691,-500.0,0.00025768,2]
[342076275,1731408639699,-500.0,0.00025769,2]
[342076276,1731408639709,-587.0,0.00025896,2]
[342076280,1731408639718,-819.65,0.00026037,2]
[342076282,1731408639732,-500.0,0.00026042,2]
[342076284,1731408639741,-251.98284863,0.00026043,2]
[342076287,1731408639751,-290.80537291,0.00026123,2]
[342076288,1731408639762,-402.38,0.00026296,3]
[342076289,1731408639773,-819.65,0.00026311,2]
[342076290,1731408639784,-573.48,0.00026316,2]
[342076291,1731408639794,-587.0,0.00026532,2]
[342076292,1731408639803,-819.65,0.00026585,2]
[342076293,1731408639813,-290.80537291,0.00026762,2]
[342076294,1731408639822,-2217.57,0.00026792,2]
[342076295,1731408639833,-819.65,0.00026859,2]
[342076296,1731408639843,-188.03655,0.00026921,2]
[342076297,1731408639854,-500.0,0.00026992,7]
[342076298,1731408639866,-1123.0,0.00027021,2]
[342076299,1731408639876,-2390.0,0.00027021,2]
[342076300,1731408639887,-819.65,0.00027133,2]
[342076302,1731408639896,-2161.57253723,0.00027383,2]
[342076303,1731408639907,-2217.57,0.00027399,2]
[342076305,1731408639917,-1697.27178416,0.000274,2]
[342076307,1731408639928,-290.80537291,0.000274,2]
[342076309,1731408639939,-819.65,0.00027407,2]
[342076310,1731408639949,-500.0,0.00027473,5]
[342076312,1731408639960,-500.0,0.00027473,5]
[342076314,1731408639970,-500.0,0.00027473,5]
[342076315,1731408639987,-8147.24947713,0.0002749,2]
[342076317,1731408639998,-636.00368501,0.00027499,2]
[342076321,1731408640068,-378.27631499,0.00027499,2]
[342076323,1731408640078,-2217.57,0.00027499,2]
[342076325,1731408640088,-2217.57,0.00027499,2]
[342076326,1731408640098,-2217.57,0.00027499,2]
[342076327,1731408640107,-2217.57,0.00027499,2]
[342076328,1731408640117,-2217.57,0.00027499,2]
[342076329,1731408640127,-2217.57,0.00027499,2]
[342076330,1731408640136,-2217.57,0.00027499,2]
[342076332,1731408640146,-2217.57,0.00027499,2]
[342076334,1731408640157,-2217.57,0.00027499,2]
[342076335,1731408640167,-2217.57,0.00027499,2]
[342076337,1731408640176,-2217.57,0.00027499,2]
[342076338,1731408640186,-2217.57,0.00027499,2]
[342076339,1731408640195,-2217.57,0.00027499,2]
[342076340,1731408640207,-2217.57,0.00027499,2]
[342076342,1731408640216,-2217.57,0.00027499,2]
[342076343,1731408640228,-2217.78315686,0.00027499,2]
[342076345,1731408640240,-6478.08735412,0.000275,2]
[342076347,1731408640249,-8764.43091392,0.000275,2]
[342076348,1731408640258,-201457.87225986,0.000275,4]
[342076349,1731408640270,-185253.1671236,0.000275,4]
[342076350,1731408640283,-383.24,0.000275,4]
[342076351,1731408640295,-1053.138134,0.000275,4]
[342076352,1731408640367,-500.009999,0.00024672,2]
[342076353,1731408640378,-18532.02472752,0.000275,4]
[342076354,1731408640390,-10552.81409108,0.000275,4]
[342076356,1731408640402,-27528.94895438,0.000275,4]
[342076357,1731408640414,-3002.6960423,0.000275,4]
[342076358,1731408640443,-522.82500179,0.00022475,2]
[342076359,1731408640456,-74.68499821,0.00022475,2]
[342076360,1731408640465,-3544.86445725,0.000275,4]
[342076361,1731408640481,-1427.63195803,0.000275,4]
[342076362,1731408641512,-310.44169258,0.00024672,2]
[342076363,1731408641524,-206.05652488,0.00024672,2]
[342076364,1731408641533,-1008.55680711,0.000275,4]
[342076365,1731408641546,-4382.52421185,0.000275,4]
[342076366,1731408641557,-2419.02761748,0.000275,4]
[342076367,1731408641569,-1161.44999985,0.000275,4]
[342076415,1731408643560,-500.0,0.00022475,2]
[342076416,1731408643570,-1615.19298301,0.000275,4]
[342076418,1731408643584,-71437.98360788,0.000275,4]
[342076420,1731408643598,-2970.0287731,0.000275,4]
[342076421,1731408643611,-12983.23332679,0.000275,4]
[342076423,1731408643624,-559215.21688789,0.000275,4]
[342076425,1731408643637,-15468.59885713,0.000275,4]
[342076427,1731408643652,-5922.85010295,0.000275,4]
[342076428,1731408643667,-2857.09379084,0.000275,4]
[342076429,1731408643681,-18602.87204002,0.000275,4]
[342076430,1731408643698,-2720.387544,0.00027255,2]
[342076431,1731408643710,-716.74383574,0.000275,4]
[342076432,1731408643723,-68521.17059612,0.000275,4]
[342076433,1731408643741,-502.39511217,0.000275,2]
[342076434,1731408643752,-17667.73374022,0.000275,4]
[342076435,1731408643764,-8780.51625978,0.000275,4]
[342076436,1731408643774,-819.65,0.00027681,2]
[342076437,1731408643784,-808.23374022,0.00027955,2]
[342076438,1731408643877,-2720.387544,0.00027596,2]
[342076439,1731408643887,-11.41625978,0.00027955,2]
[342076440,1731408643897,-1000.0,0.00028021,5]
[342076441,1731408643907,-466.19207195,0.00028062,2]
[342076442,1731408643917,-151.01637,0.000281,2]
[342076443,1731408643927,-823.0,0.00028143,2]
[342076444,1731408643937,-819.65,0.00028229,2]
[342076445,1731408643948,-152.84,0.000284,31]
[342076446,1731408643958,-2161.57253723,0.00028429,2]
[342076447,1731408643968,-819.65,0.00028503,2]
[342076448,1731408643981,-819.68632168,0.00028776,2]
[342076449,1731408643992,-1500.0,0.00029022,5]
[342076450,1731408644002,-152.84,0.000291,31]
[342076451,1731408644111,-152.84,0.000291,31]
[342076452,1731408644121,-2161.57253723,0.00029475,2]
[342076453,1731408644133,-151.0,0.00029792,7]
[342076454,1731408644143,-305.9382545,0.00029808,30]
[342076455,1731408644154,-211.4359248,0.00029808,30]
[342076456,1731408644165,-152.84,0.000299,31]
[342076457,1731408644175,-152.84,0.000299,31]
[342076458,1731408644186,-500.0,0.00029973,5]
[342076459,1731408644196,-500.0,0.00029973,5]
[342076460,1731408644206,-80540.945006,0.0003,2]
[342076461,1731408644217,-151.0,0.0003,120]
[342076462,1731408644227,-164.28780814,0.0003,30]
[342076463,1731408644246,-3024.30475702,0.0003,10]
[342076464,1731408644256,-151.0,0.0003,120]
[342076465,1731408644266,-1000.0,0.0003,120]
[342076466,1731408644276,-303.00000303,0.0003,2]
[342076467,1731408644285,-269.0,0.0003,2]
[342076468,1731408644296,-303.03030303,0.0003,2]
[342076469,1731408644305,-500.0,0.00030057,11]
[342076470,1731408644315,-301.59431134,0.00030077,11]
[342076471,1731408644325,-500.0,0.00030136,7]
[342076472,1731408644336,-500.0,0.00030136,120]
[342076473,1731408644352,-999.0,0.00030136,120]
[342076474,1731408644363,-184.683,0.00030182,2]
[342076475,1731408644374,-1014.28,0.00030239,4]
[342076476,1731408644384,-303.00000303,0.000303,2]
[342076477,1731408644395,-303.03030303,0.000303,2]
[342076478,1731408644407,-2000.0,0.0003032,5]
[342076479,1731408644418,-225.633,0.00030331,2]
[342076480,1731408644429,-175.394,0.00030331,2]
[342076481,1731408644440,-6.44742256,0.00030396,7]
[342076482,1731408644454,-144.55257744,0.00030396,7]
[342076483,1731408644466,-152.835447,0.000305,2]
[342076484,1731408644477,-440.14191497,0.00030521,5]
[342076485,1731408644496,-2161.57253723,0.00030521,2]
[342076486,1731408644507,-1078.44699302,0.00030526,2]
[342076487,1731408644521,-753.66719047,0.00030526,2]
[342076488,1731408644533,-297.45787847,0.00030526,2]
[342076545,1731408646415,-500.0,0.00022475,2]
[342076546,1731408646426,-500.0,0.00022749,2]
[342076547,1731408646437,-500.0,0.00023023,2]
[342076548,1731408646448,-500.0,0.00023297,2]
[342076549,1731408646459,-500.0,0.00023571,2]
[342076550,1731408646470,-500.0,0.00023845,2]
[342076551,1731408646487,-2720.387544,0.00027937,2]
[342076552,1731408646499,-522.89601307,0.00030526,2]
[342076553,1731408646509,-1152.0,0.00030584,2]
[342076554,1731408646520,-303.00000303,0.000306,2]
[342076555,1731408646530,-303.03030303,0.000306,2]
[342076556,1731408646541,-150.03,0.000306,2]
[342076557,1731408646552,-500.0,0.000306,2]
[342076558,1731408646563,-150.03,0.000306,2]
[342076559,1731408646574,-151.0,0.00030616,3]
[342076560,1731408646584,-151.0,0.00030621,7]
[342076561,1731408646594,-151.34285,0.00030621,7]
[342076562,1731408646605,-151.0,0.00030621,7]
[342076563,1731408646616,-151.0,0.00030621,7]
[342076564,1731408646626,-151.0,0.00030621,7]
[342076565,1731408646637,-151.0,0.00030621,7]
[342076566,1731408646647,-151.0,0.00030621,7]
[342076567,1731408646657,-256.36867,0.00030621,7]
[342076568,1731408646667,-179.482102,0.00030621,7]
[342076569,1731408646676,-151.0,0.00030621,7]
[342076570,1731408646687,-151.0,0.00030621,7]
[342076571,1731408646698,-151.0,0.00030621,7]
[342076572,1731408646708,-151.0,0.00030621,7]
[342076573,1731408646718,-460.825,0.00030621,7]
[342076574,1731408646733,-460.825,0.00030621,7]
[342076575,1731408646744,-460.825,0.00030621,7]
[342076576,1731408646754,-460.825,0.00030621,7]
[342076577,1731408646765,-460.825,0.00030621,7]
[342076578,1731408646776,-460.825,0.00030621,7]
[342076579,1731408646786,-460.825,0.00030621,7]
[342076580,1731408646796,-460.825,0.00030621,7]
[342076581,1731408646807,-206.09119352,0.00030621,7]
[342076582,1731408646818,-151.0,0.00030621,7]
[342076583,1731408646830,-151.0,0.00030621,7]
[342076584,1731408646841,-151.0,0.00030621,7]
[342076585,1731408646852,-291.135262,0.00030621,7]
[342076586,1731408646863,-151.0,0.00030621,7]
[342076587,1731408646873,-151.0,0.00030621,7]
[342076588,1731408646883,-151.0,0.00030621,7]
[342076589,1731408646893,-151.0,0.00030621,7]
[342076590,1731408646905,-151.0,0.00030621,7]
[342076591,1731408646915,-151.0,0.00030621,7]
[342076592,1731408646925,-151.0,0.00030621,7]
[342076593,1731408646935,-151.0,0.00030621,7]
[342076594,1731408646945,-169.202262,0.00030621,7]
[342076595,1731408646954,-151.0,0.00030621,7]
[342076596,1731408646963,-151.0,0.00030621,7]
[342076597,1731408646973,-151.0,0.00030621,7]
[342076598,1731408646991,-184.713202,0.00030621,7]
[342076599,1731408647001,-151.0,0.00030621,7]
[342076600,1731408647014,-151.0,0.00030621,7]
[342076601,1731408647025,-151.0,0.00030621,7]
[342076602,1731408647036,-151.0,0.00030621,7]
[342076603,1731408647046,-151.0,0.00030621,7]
[342076604,1731408647060,-151.0,0.00030621,7]
[342076605,1731408647072,-151.0,0.00030621,7]
[342076606,1731408647083,-151.0,0.00030621,7]
[342076607,1731408647093,-151.0,0.00030621,7]
[342076608,1731408647105,-187.78364,0.00030621,7]
[342076609,1731408647116,-80058.47712838,0.00030624,10]
[342076610,1731408647129,-5186.343,0.00030624,10]
[342076611,1731408647144,-8634.9,0.00030624,10]
[342076612,1731408647157,-18168.6765833,0.00030624,10]
[342076613,1731408647169,-8666.8,0.00030624,10]
[342076669,1731409036789,1169.27083333,0.00020843,2]
[342076670,1731409038070,191.26125,0.00020307,2]
[342076678,1731409106971,160.0,0.00020843,2]
[342076690,1731409227671,179.831067,0.00013973,2]
[342076691,1731409227928,179.831067,0.00020447,2]
[342076692,1731409234776,200.0,0.00027,120]
[342076711,1731409349386,1169.27083333,0.00020843,2]
[342076843,1731409418783,160.0,0.00020843,2]
[342076852,1731409451751,176.956403,0.00020145,2]
[342076853,1731409469412,5188.6279961,0.00020419,2]
[342076862,1731409660853,1169.27083333,0.00020843,2]
[342076868,1731409729885,160.0,0.00020843,2]
[342076871,1731409774192,197.068879,0.00020459,2]
[342076926,1731409832340,-1169.27083333,0.00020843,2]
[342076927,1731409832351,-160.0,0.00020843,2]
[342076928,1731409832362,-227.273432,0.00020853,2]
[342076929,1731409832372,-587.34,0.000209,2]
[342076931,1731409832382,-197.068879,0.00021143,2]
[342076933,1731409832392,-157.25,0.00021176,2]
[342076934,1731409832402,-300.0,0.00021185,2]
[342076935,1731409832414,-12820.0152565,0.00021186,2]
[342076937,1731409832424,-358.31156282,0.00021306,2]
[342076938,1731409832433,-439.0925161,0.00021406,2]
[342076939,1731409832443,-3176.0,0.00021677,2]
[342076940,1731409832451,-1679.52828662,0.00021817,2]
[342076941,1731409832462,-197.068879,0.00021828,2]
[342076942,1731409832471,-1016.34537363,0.00021916,2]
[342076943,1731409832481,-500.0,0.00021916,2]
[342076945,1731409832494,-388.38482481,0.00021916,2]
[342076947,1731409832504,-500.0,0.00021916,2]
[342076950,1731409832514,-500.0,0.00021916,2]
[342076952,1731409832523,-418.23383524,0.00021916,2]
[342076953,1731409832533,-500.0,0.00021916,2]
[342076954,1731409832542,-500.0,0.00021916,2]
[342076955,1731409832551,-500.0,0.00021916,2]
[342076956,1731409832560,-500.0,0.00021916,2]
[342076957,1731409832569,-500.0,0.00021916,2]
[342076958,1731409832580,-500.0,0.00021916,2]
[342076959,1731409832589,-500.0,0.00021916,2]
[342076960,1731409832600,-500.0,0.00021916,2]
[342076961,1731409832609,-500.0,0.00021916,2]
[342076962,1731409832618,-500.0,0.00021916,2]
[342076963,1731409832627,-524.63749128,0.00021916,2]
[342076964,1731409832637,-500.0,0.00021916,2]
[342076965,1731409832646,-182.87458457,0.00021916,2]
[342076966,1731409832655,-500.0,0.00021916,2]
[342076967,1731409832664,-500.0,0.00021916,2]
[342076968,1731409832673,-500.0,0.00021916,2]
[342076969,1731409832683,-500.0,0.00021916,2]
[342076970,1731409832692,-500.0,0.00021916,2]
[342076971,1731409832701,-500.0,0.00021916,2]
[342076972,1731409832710,-500.0,0.00021916,2]
[342076973,1731409832719,-500.0,0.00021916,2]
[342076974,1731409832728,-500.0,0.00021916,2]
[342076975,1731409832737,-500.0,0.00021916,2]
[342076976,1731409832746,-500.0,0.00021916,2]
[342076977,1731409832755,-500.0,0.00021916,2]
[342076978,1731409832764,-500.0,0.00021916,2]
[342076979,1731409832773,-500.0,0.00021916,2]
[342076980,1731409832782,-500.0,0.00021916,2]
[342076981,1731409832791,-500.0,0.00021916,2]
[342076982,1731409832801,-500.0,0.00021916,2]
[342076983,1731409832810,-500.0,0.00021916,2]
[342076984,1731409832819,-500.0,0.00021916,2]
[342076985,1731409832828,-500.0,0.00021916,2]
[342076986,1731409832837,-500.0,0.00021916,2]
[342076987,1731409832848,-617.6976674,0.00021916,2]
[342076988,1731409832858,-500.0,0.00021916,2]
[342076989,1731409832867,-500.0,0.00021916,2]